bitfinex/quotes_SOLUSD_20260224
["timestamp","ask_amount","ask_price","bid_price","bid_amount"]
[1771945680053,12.99730955,76.939,76.901,4.38866078]
[1771945680548,13.91023373,76.93,76.891,13.00542326]
[1771945680753,13.91023373,76.93,76.856,104.09059092]
[1771945680754,13.91023373,76.9,76.862,4.38866078]
[1771945680958,3.69383402,76.917,76.88,13.91023373]
[1771945681142,13.91023373,76.91,76.871,4.38866078]
[1771945681660,13.91023373,76.89,76.861,13.01049947]
[1771945681831,4.27329953,76.899,76.862,4.38866078]
[1771945682027,13.91023373,76.9,76.864,4.38866078]
[1771945682242,13.91023373,76.91,76.872,4.38866078]
[1771945682448,4.27329953,76.899,76.863,13.01016093]
[1771945682832,13.91023373,76.9,76.864,4.38866078]
[1771945683236,0.2,76.89,76.864,4.38866078]
[1771945683438,14.11023373,76.89,76.864,4.38866078]
[1771945683639,1e-08,76.89,76.871,4.38866078]
[1771945684146,1e-08,76.89,76.881,4.38866078]
[1771945684449,1e-08,76.89,76.872,45.53023206]
[1771945684657,1e-08,76.89,76.872,13.00863773]
[1771945684958,1e-08,76.89,76.872,12.80863773]
[1771945685156,4.27329953,76.889,76.85,13.91023373]
[1771945685339,4.27329953,76.889,76.843,4.38866078]
[1771945685340,13.91023373,76.88,76.844,13.01337775]
[1771945685546,13.91023373,76.88,76.844,49.93548291]
[1771945685747,4.27329953,76.879,76.844,4.38866078]
[1771945685947,4.27329953,76.889,76.851,4.38866078]
[1771945686154,13.91023373,76.87,76.841,13.01388581]
[1771945686353,13.91023373,76.88,76.842,4.38866078]
[1771945686939,13.91023373,76.86,76.826,13.01634462]
[1771945687142,13.91023373,76.85,76.826,13.01634462]
[1771945687338,4.27329953,76.849,76.81,13.01904559]
[1771945687553,4.27329953,76.849,76.811,4.38866078]
[1771945687744,4.27329953,76.873,76.811,4.38866078]
[1771945688057,13.91023373,76.86,76.823,4.38866078]
[1771945688253,13.91023373,76.87,76.831,4.38866078]
[1771945688432,4.27329953,76.886,76.841,4.38866078]
[1771945688433,26.91759392,76.88,76.841,4.38866078]
[1771945688856,4.27329953,76.859,76.822,45.55986565]
[1771945689156,13.91023373,76.86,76.823,4.38866078]
[1771945689563,13.91023373,76.87,76.831,4.38866078]
[1771945690166,13.91023373,76.86,76.831,4.38866078]
[1771945690466,13.01083802,76.859,76.824,4.38866078]
[1771945691138,12.81083802,76.859,76.824,4.38866078]
[1771945691334,13.91023373,76.85,76.823,13.01693503]
[1771945691552,13.91023373,76.84,76.815,13.01829069]
[1771945691958,4.27329953,76.849,76.806,13.01966764]
[1771945692136,13.91023373,76.84,76.807,4.38866078]
[1771945692346,13.01422454,76.839,76.808,13.01947713]
[1771945692664,17.28752407,76.839,76.808,13.01947713]
[1771945692963,13.91023373,76.83,76.796,4.38866078]
[1771945693257,13.91023373,76.83,76.792,4.38866078]
[1771945694562,13.91023373,76.84,76.801,4.38866078]
[1771945694752,26.92444348,76.84,76.801,4.38866078]
[1771945695145,13.91023373,76.84,76.801,4.38866078]
[1771945695648,13.91023373,76.84,76.811,4.38866078]
[1771945696661,13.01270039,76.848,76.813,4.38866078]
[1771945696966,13.91023373,76.84,76.813,4.38866078]
[1771945697261,13.91023373,76.85,76.813,4.38866078]
[1771945697464,13.91023373,76.86,76.821,4.38866078]
[1771945697972,13.91023373,76.86,76.812,45.565797]
[1771945697973,13.91023373,76.88,76.841,4.18866078]
[1771945698263,13.91023373,76.87,76.83,13.91023373]
[1771945698661,13.00762246,76.878,76.841,13.01388581]
[1771945698853,13.91023373,76.87,76.841,12.81388581]
[1771945699049,13.91023373,76.87,76.807,3.69383402]
[1771945699050,13.91023373,76.85,76.78,52.09679768]
[1771945699249,13.91023373,76.85,76.81,13.91023373]
[1771945699250,4.27329953,76.849,76.81,13.91023373]
[1771945700060,4.27329953,76.849,76.81,18.29889451]
[1771945700265,162.59528081,76.878,76.791,45.57825786]
[1771945700266,13.91023373,76.82,76.791,45.57825786]
[1771945700759,17.28933141,76.829,76.791,45.57825786]
[1771945700962,13.91023373,76.82,76.791,45.57825786]
[1771945701152,4.27329953,76.829,76.792,4.38866078]
[1771945701456,13.01591846,76.829,76.792,4.38866078]
[1771945701846,13.91023373,76.83,76.792,4.38866078]
[1771945702048,13.01591846,76.829,76.792,4.38866078]
[1771945702757,13.01591846,76.829,76.793,13.02202023]
[1771945702952,13.91023373,76.83,76.794,4.38866078]
[1771945703151,4.27329953,76.829,76.794,4.38866078]
[1771945703455,13.91023373,76.83,76.794,4.38866078]
[1771945703865,13.91023373,76.82,76.794,4.38866078]
[1771945704064,26.92606884,76.83,76.794,4.38866078]
[1771945704266,13.91023373,76.82,76.794,4.38866078]
[1771945704654,13.91023373,76.82,76.795,13.02168109]
[1771945704862,13.91023373,76.82,76.796,4.39842956]
[1771945705169,13.91023373,76.82,76.801,0.2]
[1771945705373,13.97012209,76.81,76.791,0.2]
[1771945705573,4.07757892,76.81,76.776,32.5621691]
[1771945705757,13.97012209,76.8,76.776,45.58707271]
[1771945706073,13.77012209,76.81,76.777,4.47121712]
[1771945706252,13.97012209,76.82,76.781,4.47121712]
[1771945707364,13.97012209,76.81,76.782,13.0238858]
[1771945707564,13.01761283,76.819,76.783,4.47121712]
[1771945707857,13.97012209,76.82,76.783,4.47121712]
[1771945708059,13.97012209,76.84,76.801,4.47121712]
[1771945708401,13.97012209,76.85,76.811,4.47121712]
[1771945708767,13.97012209,76.86,76.821,4.47121712]
[1771945708959,13.97012209,76.85,76.821,4.47121712]
[1771945709161,45.52727082,76.877,76.782,319.08520222]
[1771945709162,4.07757892,76.829,76.791,4.47121712]
[1771945709471,3.69383402,76.837,76.8,13.97012209]
[1771945709654,13.97012209,76.83,76.801,4.47121712]
[1771945711060,13.97012209,76.81,76.782,45.58360031]
[1771945711253,13.97012209,76.81,76.782,13.0238858]
[1771945711971,26.98934458,76.81,76.782,13.0238858]
[1771945712273,13.97012209,76.81,76.782,13.0238858]
[1771945712579,13.01930763,76.809,76.778,17.49569086]
[1771945712777,13.97012209,76.79,76.764,4.47121712]
[1771945712975,13.97012209,76.8,76.764,4.47121712]
[1771945713775,13.97012209,76.8,76.766,4.47121712]
[1771945714078,13.97012209,76.81,76.771,4.47121712]
[1771945714877,3.69383402,76.817,76.781,4.47121712]
[1771945715175,13.97012209,76.82,76.791,4.47121712]
[1771945715987,27.18598292,76.83,76.791,4.47121712]
[1771945716282,13.97012209,76.81,76.782,13.0238858]
[1771945716475,4.07757892,76.841,76.782,149.77468675]
[1771945716677,110.64916741,76.91,76.782,149.77468675]
[1771945716678,4.07757892,76.876,76.83,13.97012209]
[1771945716859,13.97012209,76.86,76.83,13.97012209]
[1771945717055,13.01083802,76.859,76.831,13.01557964]
[1771945717260,13.97012209,76.87,76.832,4.47121712]
[1771945717482,13.97012209,76.87,76.831,13.01557964]
[1771945717483,18.04770101,76.88,76.841,4.47121712]
[1771945717674,13.97012209,76.86,76.831,13.01557964]
[1771945717878,4.07757892,76.868,76.831,50.02574588]
[1771945718063,13.97012209,76.86,76.831,50.02574588]
[1771945718380,13.97012209,76.86,76.831,13.01557964]
[1771945718561,13.97012209,76.85,76.807,4.47121712]
[1771945718764,13.97012209,76.85,76.821,4.47121712]
[1771945718963,13.97012209,76.84,76.801,0.2]
[1771945719296,13.01422454,76.839,76.801,4.67121712]
[1771945719465,45.5497859,76.839,76.802,13.02049425]
[1771945719781,4.07757892,76.829,76.801,0.2]
[1771945720283,45.5497859,76.839,76.801,4.67121712]
[1771945720486,13.01422454,76.839,76.803,4.47121712]
[1771945721061,13.97012209,76.83,76.804,13.0201552]
[1771945721270,13.97012209,76.85,76.811,4.47121712]
[1771945722578,13.97012209,76.87,76.831,4.47121712]
[1771945722972,18.04770101,76.87,76.831,4.47121712]
[1771945723185,13.97012209,76.86,76.832,13.01541024]
[1771945723971,13.97012209,76.84,76.809,4.47121712]
[1771945724267,13.97012209,76.84,76.81,13.0190444]
[1771945724488,13.97012209,76.85,76.811,4.47121712]
[1771945724868,4.07757892,76.829,76.801,0.2]
[1771945725068,13.97012209,76.84,76.803,4.47121712]
[1771945725288,13.97012209,76.83,76.804,13.0201552]
[1771945725797,13.97012209,76.81,76.77,26.99593117]
[1771945725968,13.97012209,76.8,76.77,26.99593117]
[1771945726170,13.97012209,76.81,76.771,4.47121712]
[1771945726888,13.97012209,76.82,76.781,4.47121712]
[1771945727187,13.97012209,76.81,76.781,4.47121712]
[1771945727385,13.97012209,76.81,76.782,45.58360031]
[1771945727970,13.97012209,76.8,76.768,13.02626094]
[1771945728187,13.97012209,76.8,76.768,50.06313041]
[1771945728391,13.97012209,76.8,76.769,4.47121712]
[1771945728786,3.69383402,76.825,76.771,4.47121712]
[1771945728787,13.97012209,76.81,76.771,4.47121712]
[1771945728985,3.69383402,76.825,76.762,13.02720361]
[1771945728986,13.97012209,76.8,76.762,13.02720361]
[1771945729192,13.97012209,76.78,76.76,0.2]
[1771945729395,13.97012209,76.77,76.735,13.0318629]
[1771945729600,13.97012209,76.77,76.736,4.47121712]
[1771945730089,13.97012209,76.77,76.738,32.57838359]
[1771945730284,162.75194,76.804,76.741,4.47121712]
[1771945730285,13.97012209,76.78,76.741,4.47121712]
[1771945730485,13.97012209,76.77,76.735,13.0318629]
[1771945731076,13.97012209,76.77,76.73,18.64133921]
[1771945731077,13.97012209,76.76,76.731,13.03254225]
[1771945731394,13.97012209,76.75,76.73,0.2]
[1771945731592,13.97012209,76.76,76.73,13.23256202]
[1771945732303,13.97012209,76.75,76.73,13.23256202]
[1771945732480,13.97012209,76.75,76.73,0.2]
[1771945732686,13.02688111,76.765,76.731,13.03254225]
[1771945732885,13.97012209,76.75,76.73,0.2]
[1771945733098,13.97012209,76.75,76.73,13.23263716]
[1771945733424,3.69383402,76.774,76.73,13.23263716]
[1771945733425,13.97012209,76.78,76.741,4.47121712]
[1771945734682,13.02269856,76.789,76.751,4.47121712]
[1771945735285,13.97012209,76.78,76.751,4.47121712]
[1771945735598,0.2,76.79,76.73,0.2]
[1771945735599,0.2,76.79,76.761,4.20814122]
[1771945735790,0.2,76.79,76.752,45.60141754]
[1771945735993,4.33063655,76.779,76.741,4.20814122]
[1771945736192,4.33063655,76.789,76.751,4.20814122]
[1771945736582,14.17012209,76.79,76.751,4.20814122]
[1771945736786,0.2,76.79,76.761,4.20814122]
[1771945737103,14.17012209,76.79,76.751,4.20814122]
[1771945737603,0.2,76.79,76.761,4.20814122]
[1771945737990,14.17012209,76.79,76.761,4.20814122]
[1771945738186,0.2,76.79,76.761,4.20814122]
[1771945739296,0.2,76.79,76.771,4.20814122]
[1771945739604,0.2,76.79,76.752,32.5724411]
[1771945739605,18.50075864,76.79,76.752,32.5724411]
[1771945739805,31.52341411,76.79,76.754,4.20814122]
[1771945740000,0.2,76.79,76.761,4.20814122]
[1771945740399,14.17012209,76.8,76.76,13.97012209]
[1771945740400,14.17012209,76.8,76.762,4.20814122]
[1771945740705,0.2,76.8,76.781,4.20814122]
[1771945741590,0.2,76.8,76.773,4.20814122]
[1771945741900,13.01930763,76.809,76.778,4.20814122]
[1771945742088,4.33063655,76.799,76.772,13.02558224]
[1771945742505,18.30075864,76.79,76.764,13.02693971]
[1771945742707,13.97012209,76.82,76.781,4.20814122]
[1771945742889,13.97012209,76.83,76.791,4.20814122]
[1771945743395,4.33063655,76.854,76.801,4.20814122]
[1771945743588,4.33063655,76.854,76.761,306.14504757]
[1771945743589,26.98250762,76.85,76.821,13.01727392]
[1771945743914,4.33063655,76.829,76.79,13.97012209]
[1771945744707,4.33063655,76.829,76.8,13.97012209]
[1771945745209,4.33063655,76.829,76.79,13.97012209]
[1771945745510,4.33063655,76.829,76.791,4.20814122]
[1771945745714,13.97012209,76.83,76.793,4.20814122]
[1771945745892,13.97012209,76.83,76.801,4.20814122]
[1771945746092,4.33063655,76.829,76.793,4.20814122]
[1771945746287,13.01477084,76.836,76.801,4.20814122]
[1771945746288,4.33063655,76.835,76.801,4.20814122]
[1771945747014,4.33063655,76.858,76.821,4.20814122]
[1771945747311,18.30075864,76.87,76.831,4.20814122]
[1771945747511,4.33063655,76.869,76.84,13.97012209]
[1771945747713,13.01090501,76.859,76.822,45.55986565]
[1771945747910,13.97012209,76.86,76.822,49.76800687]
[1771945747911,4.33063655,76.858,76.822,49.76800687]
[1771945748113,4.33063655,76.858,76.823,4.20814122]
[1771945748312,4.33063655,76.858,76.83,13.97012209]
[1771945748611,4.33063655,76.858,76.822,13.01710447]
[1771945748612,18.30075864,76.85,76.822,13.01710447]
[1771945748810,18.30075864,76.85,76.774,52.10069075]
[1771945748811,13.97012209,76.84,76.814,13.01846017]
[1771945749511,4.33063655,76.845,76.814,13.01846017]
[1771945749691,65.04242925,76.873,76.784,52.09405016]
[1771945749692,4.33063655,76.867,76.832,13.01541024]
[1771945749894,13.97012209,76.87,76.832,13.01541024]
[1771945749895,13.97012209,76.87,76.84,13.97012209]
[1771945750091,4.33063655,76.869,76.833,4.20814122]
[1771945750412,4.33063655,76.869,76.84,13.97012209]
[1771945750932,13.00745327,76.879,76.85,13.97012209]
[1771945751215,14.17012209,76.88,76.85,13.97012209]
[1771945751796,0.2,76.88,76.86,13.97012209]
[1771945752023,14.17012209,76.88,76.853,4.20814122]
[1771945752212,0.2,76.88,76.853,4.20814122]
[1771945752395,17.33808982,76.879,76.85,13.97012209]
[1771945752600,0.2,76.88,76.851,49.7508147]
[1771945752802,51.98418136,76.947,76.87,13.97012209]
[1771945752803,13.00339388,76.903,76.87,13.97012209]
[1771945752997,4.33063655,76.899,76.87,13.97012209]
[1771945753225,4.33063655,76.889,76.851,45.54267348]
[1771945753404,4.33063655,76.879,76.842,13.01362238]
[1771945753604,4.33063655,76.869,76.842,13.01362238]
[1771945754314,4.33063655,76.859,76.825,32.54132466]
[1771945754625,4.33063655,76.859,76.826,45.55749355]
[1771945754826,13.97012209,76.85,76.826,13.01642673]
[1771945755007,4.33063655,76.849,76.826,13.01642673]
[1771945755626,4.33063655,76.849,76.798,4.20814122]
[1771945755803,4.33063655,76.839,76.8,13.97012209]
[1771945756010,13.97012209,76.85,76.821,4.20814122]
[1771945756824,13.97012209,76.85,76.81,13.97012209]
[1771945756825,4.33063655,76.839,76.8,18.17826331]
[1771945757128,4.33063655,76.839,76.801,4.20814122]
[1771945757329,13.97012209,76.83,76.801,4.20814122]
[1771945757511,18.30075864,76.83,76.799,45.57351006]
[1771945757713,18.30075864,76.83,76.8,13.97012209]
[1771945757907,4.33063655,76.83,76.801,13.02066379]
[1771945758412,18.30075864,76.83,76.801,13.02066379]
[1771945758806,13.01591846,76.829,76.801,13.02066379]
[1771945759213,18.30075864,76.84,76.802,4.20814122]
[1771945759415,4.33063655,76.839,76.802,4.20814122]
[1771945760329,52.02126467,76.892,76.811,4.20814122]
[1771945760330,13.01286703,76.848,76.811,4.20814122]
[1771945761325,4.33063655,76.839,76.81,13.97012209]
[1771945761508,4.33063655,76.847,76.811,4.20814122]
[1771945761705,13.97012209,76.84,76.811,4.20814122]
[1771945761909,13.97012209,76.84,76.803,45.57113653]
[1771945761910,4.33063655,76.839,76.804,4.20814122]
[1771945762204,4.33063655,76.839,76.81,13.97012209]
[1771945762607,4.33063655,76.839,76.81,18.17826331]
[1771945762840,13.97012209,76.84,76.811,4.20814122]
[1771945763007,4.33063655,76.849,76.811,4.20814122]
[1771945763205,17.34331586,76.849,76.811,4.20814122]
[1771945764446,13.97012209,76.85,76.789,52.090741]
[1771945764447,45.52194157,76.886,76.82,13.97012209]
[1771945764613,4.23222971,76.869,76.831,4.33951825]
[1771945764815,4.23222971,76.859,76.821,4.33951825]
[1771945765232,4.23222971,76.859,76.83,13.95282887]
[1771945765728,4.23222971,76.859,76.821,4.33951825]
[1771945765936,4.23222971,76.859,76.82,13.95282887]
[1771945765937,4.47818255,76.839,76.812,13.01879914]
[1771945766136,4.47818255,76.839,76.801,4.18702321]
[1771945766338,4.47818255,76.829,76.792,4.18702321]
[1771945766513,4.47818255,76.829,76.793,13.02202023]
[1771945766713,4.47818255,76.829,76.794,4.18702321]
[1771945767331,4.47818255,76.829,76.8,13.95282887]
[1771945767530,13.95282887,76.84,76.793,45.57707082]
[1771945767531,52.02507608,76.886,76.811,4.18702321]
[1771945767718,4.47818255,76.856,76.82,18.13985208]
[1771945767918,4.47818255,76.856,76.821,4.18702321]
[1771945768215,13.95282887,76.85,76.821,4.18702321]
[1771945768615,13.95282887,76.85,76.822,13.01710447]
[1771945769535,94.44107972,77.019,76.822,13.01710447]
[1771945769536,4.47818255,76.877,76.841,4.18702321]
[1771945769718,13.00796087,76.876,76.841,4.18702321]
[1771945770036,17.48614342,76.876,76.841,4.18702321]
[1771945770416,13.95282887,76.88,76.85,13.95282887]
[1771945770617,13.00673293,76.884,76.852,13.0120231]
[1771945771023,17.482641,76.897,76.861,4.18702321]
[1771945771226,13.00100572,76.918,76.88,18.13985208]
[1771945771428,4.47818255,76.917,76.89,13.95282887]
[1771945771637,4.47818255,76.928,76.891,4.18702321]
[1771945771839,0.2,76.93,76.901,4.18702321]
[1771945772140,4.47818255,76.919,76.88,13.95282887]
[1771945772316,4.47818255,76.919,76.881,4.18702321]
[1771945772722,13.95282887,76.91,76.882,13.0069457]
[1771945773038,4.47818255,76.917,76.882,13.0069457]
[1771945773441,4.47818255,76.909,76.882,13.0069457]
[1771945773640,4.47818255,76.909,76.871,13.00880696]
[1771945773834,4.47818255,76.909,76.871,17.19583017]
[1771945774018,13.00085805,76.918,76.881,4.18702321]
[1771945774341,4.47818255,76.917,76.881,4.18702321]
[1771945774721,14.15282887,76.93,76.9,13.95282887]
[1771945774926,0.2,76.93,76.901,4.18702321]
[1771945775246,13.95282887,76.96,76.921,4.18702321]
[1771945775534,4.47818255,76.974,76.94,18.13985208]
[1771945775736,13.95282887,76.98,76.941,4.18702321]
[1771945775737,12.99107732,76.976,76.941,4.18702321]
[1771945775930,4.47818255,76.985,76.95,13.95282887]
[1771945776248,4.47818255,76.985,76.951,4.18702321]
[1771945776623,32.46552122,77.005,76.963,4.18702321]
[1771945776624,12.98718165,76.999,76.963,4.18702321]
[1771945776927,4.47818255,76.985,76.953,17.18193058]
[1771945777126,4.47818255,76.985,76.943,4.18702321]
[1771945777127,13.95282887,76.98,76.943,4.18702321]
[1771945777427,45.45513577,76.999,76.94,13.95282887]
[1771945777428,18.43101142,76.97,76.944,12.99646496]
[1771945777632,4.47818255,76.979,76.944,17.18348817]
[1771945778642,4.47818255,76.979,76.945,4.18702321]
[1771945778946,31.41972783,76.99,76.96,13.95282887]
[1771945779133,31.41972783,76.99,76.951,4.18702321]
[1771945779461,4.47818255,76.989,76.951,4.18702321]
[1771945779630,4.47818255,76.979,76.946,45.48644503]
[1771945780448,13.95282887,76.97,76.946,12.99612715]
[1771945780749,13.95282887,76.97,76.942,12.99680278]
[1771945781039,4.47818255,76.977,76.942,12.99680278]
[1771945781245,18.43101142,76.97,76.942,12.99680278]
[1771945781537,4.47818255,76.97,76.942,12.99680278]
[1771945781741,4.47818255,76.969,76.933,12.99832321]
[1771945782126,4.47818255,76.969,76.933,45.49413125]
[1771945782334,31.61807171,77.0,76.961,4.18702321]
[1771945782535,31.61807171,77.0,76.971,4.18702321]
[1771945782536,0.2,77.0,76.971,4.18702321]
[1771945782740,0.2,77.0,76.981,12.99021836]
[1771945783052,4.47818255,76.999,76.972,12.99173725]
[1771945783344,0.2,77.0,76.973,4.18702321]
[1771945783840,0.2,77.0,76.98,13.95282887]
[1771945784042,0.2,77.0,76.973,4.18702321]
[1771945784942,0.2,77.0,76.974,12.99139969]
[1771945786128,4.47818255,76.999,76.974,12.99139969]
[1771945786330,4.47818255,76.999,76.97,12.99205967]
[1771945786524,4.47818255,76.999,76.967,12.99258123]
[1771945786723,4.47818255,76.988,76.966,0.2]
[1771945786923,4.47818255,76.998,76.96,18.13985208]
[1771945787143,4.47818255,76.998,76.961,4.18702321]
[1771945787325,4.47818255,76.998,76.97,13.95282887]
[1771945787524,0.2,77.0,76.971,4.18702321]
[1771945787934,12.98718165,76.999,76.971,4.18702321]
[1771945788137,4.47818255,76.998,76.969,1.17208416]
[1771945788638,4.47818255,76.989,76.969,1.17208416]
[1771945789144,0.2,77.0,76.981,4.18702321]
[1771945790846,0.1,77.05,76.981,4.18702321]
[1771945791024,0.1,77.05,76.98,13.95282887]
[1771945791025,4.47818255,77.039,77.01,13.95282887]
[1771945791229,4.47818255,77.019,76.97,4.18702321]
[1771945791550,4.47818255,77.019,76.981,4.18702321]
[1771945791847,18.53101142,77.03,76.991,4.18702321]
[1771945792045,0.1,77.03,77.001,4.18702321]
[1771945792227,0.1,77.05,77.021,4.18702321]
[1771945792734,12.97875378,77.049,77.021,4.18702321]
[1771945793142,17.45693633,77.049,77.021,12.98339985]
[1771945793348,4.47818255,77.049,77.021,12.98339985]
[1771945793534,4.47818255,77.048,77.021,12.98339985]
[1771945794333,0.1,77.05,77.03,13.95282887]
[1771945794652,0.1,77.05,77.021,49.62910316]
[1771945795147,0.1,77.05,77.03,13.95282887]
[1771945795346,0.1,77.05,76.997,51.95004329]
[1771945795347,4.36423767,77.049,77.013,12.98482074]
[1771945795935,4.36423767,77.039,77.013,12.98482074]
[1771945796128,14.05282887,77.05,77.014,4.35285765]
[1771945796450,4.36423767,77.049,77.014,4.35285765]
[1771945797653,4.36423767,77.039,77.011,12.98515796]
[1771945798041,4.36423767,77.039,77.01,13.95282887]
[1771945798558,4.36423767,77.029,77.002,12.98667567]
[1771945799049,4.36423767,77.029,77.0,13.95282887]
[1771945799050,4.36423767,77.019,76.994,12.98802504]
[1771945799637,4.36423767,77.018,76.994,12.98802504]
[1771945799935,4.36423767,77.028,77.0,13.95282887]
[1771945800139,4.36423767,77.039,77.0,13.95282887]
[1771945800448,4.36423767,77.049,77.02,18.30568652]
[1771945800749,4.36423767,77.049,76.982,12.98991268]
[1771945800750,12.97882817,77.049,77.011,4.35285765]
[1771945800961,14.05282887,77.07,77.03,13.95282887]
[1771945801136,4.46423767,77.07,77.041,4.35285765]
[1771945801332,17.43952689,77.07,77.041,4.35285765]
[1771945801535,17.43952689,77.07,77.042,12.97993302]
[1771945802032,31.39235576,77.07,77.042,12.97993302]
[1771945802251,31.39228797,77.07,77.042,12.97993302]
[1771945802457,18.41706654,77.07,77.042,12.97993302]
[1771945802640,12.97538569,77.069,77.042,12.97993302]
[1771945802957,13.95282887,77.06,77.034,4.35285765]
[1771945803253,0.1,77.07,77.051,4.35285765]
[1771945803656,0.1,77.07,77.052,12.97824845]
[1771945804235,0.1,77.07,77.051,17.33121653]
[1771945804660,0.1,77.08,77.061,4.35285765]
[1771945805155,0.1,77.08,77.07,13.95282887]
[1771945805456,0.1,77.08,77.061,4.35285765]
[1771945805668,0.1,77.11,77.051,45.42440111]
[1771945805669,12.96882294,77.108,77.071,4.35285765]
[1771945805849,12.96882294,77.108,77.053,12.97793169]
[1771945805850,4.36423767,77.089,77.053,12.97793169]
[1771945806249,3.69383402,77.103,77.045,4.35285765]
[1771945806442,4.36423767,77.099,77.07,13.95282887]
[1771945806643,4.36423767,77.099,77.044,12.97949274]
[1771945806644,13.95282887,77.09,77.06,18.30568652]
[1771945806844,4.36423767,77.079,77.044,12.97949274]
[1771945807470,18.31706654,77.07,77.044,12.97949274]
[1771945807768,4.36423767,77.068,77.035,4.35285765]
[1771945809660,12.97286077,77.084,77.052,12.97824845]
[1771945809861,4.36423767,77.098,77.061,4.35285765]
[1771945810461,17.33307884,77.108,77.071,4.35285765]
[1771945810642,13.95282887,77.1,77.071,4.35285765]
[1771945810845,18.31706654,77.09,77.061,4.35285765]
[1771945812060,4.36423767,77.088,77.053,12.97808002]
[1771945812475,4.36423767,77.088,77.06,13.95282887]
[1771945812657,4.36423767,77.088,77.053,12.97808002]
[1771945812861,4.36423767,77.079,77.041,12.9801015]
[1771945813037,4.36423767,77.079,77.041,45.43035526]
[1771945813242,45.40206773,77.089,77.03,13.95282887]
[1771945813243,13.95282887,77.06,77.03,13.95282887]
[1771945813444,4.36423767,77.059,77.023,12.98304523]
[1771945813955,13.95282887,77.07,77.06,0.2]
[1771945814270,12.97538569,77.069,77.06,0.2]
[1771945814758,4.36423767,77.079,77.06,0.2]
[1771945814960,4.36423767,77.089,77.07,0.2]
[1771945815347,4.36423767,77.087,77.07,0.2]
[1771945815782,13.95282887,77.1,77.08,0.2]
[1771945816247,4.36423767,77.103,77.07,0.2]
[1771945816248,13.95282887,77.09,77.07,0.2]
[1771945816561,4.36423767,77.089,77.07,0.2]
[1771945817451,4.36423767,77.069,77.03,4.35285765]
[1771945817652,13.95282887,77.06,77.03,18.30568652]
[1771945817948,12.97706951,77.059,77.031,12.98178655]
[1771945818349,4.36423767,77.058,77.03,4.35285765]
[1771945818663,3.69383402,77.082,77.031,4.35285765]
[1771945818863,3.69383402,77.082,77.03,12.98187994]
[1771945818864,3.69383402,77.087,77.051,4.35285765]
[1771945819052,8.05807169,77.087,77.051,4.35285765]
[1771945819565,4.36423767,77.079,77.041,4.35285765]
[1771945819745,13.95282887,77.07,77.041,4.35285765]
[1771945819945,4.36423767,77.069,77.031,12.98178655]
[1771945820565,4.36423767,77.069,77.032,4.35285765]
[1771945820868,4.16423767,77.059,77.028,12.98212907]
[1771945821663,3.96423767,77.059,77.028,12.98212907]
[1771945822442,12.97723792,77.058,77.024,12.98296634]
[1771945822645,12.77723792,77.058,77.024,12.98296634]
[1771945823445,13.95282887,77.06,77.024,45.44038221]
[1771945823649,3.69383402,77.067,77.032,4.35285765]
[1771945823843,12.97480673,77.073,77.04,13.95282887]
[1771945824045,51.88020273,77.101,77.04,13.95282887]
[1771945824046,4.36423767,77.079,77.041,4.35285765]
[1771945824660,12.97387062,77.078,77.043,4.36403529]
[1771945825251,4.34848525,77.069,77.037,12.98063142]
[1771945826356,13.87722692,77.06,77.033,17.07728516]
[1771945826556,4.34848525,77.069,77.04,13.87722692]
[1771945826861,4.34848525,77.109,77.061,4.09592925]
[1771945827062,4.34848525,77.108,77.071,4.09592925]
[1771945827558,4.34848525,77.099,77.055,4.09592925]
[1771945827766,4.34848525,77.099,77.07,13.87722692]
[1771945827963,4.34848525,77.099,77.061,4.09592925]
[1771945828984,3.69383402,77.106,77.071,4.09592925]
[1771945829477,13.87722692,77.1,77.071,4.09592925]
[1771945830057,4.34848525,77.099,77.063,0.2]
[1771945830275,4.34848525,77.089,77.063,0.2]
[1771945830766,12.97218762,77.088,77.063,0.2]
[1771945830970,4.34848525,77.087,77.063,0.2]
[1771945831343,4.34848525,77.079,77.063,0.2]
[1771945831772,4.34848525,77.069,77.031,4.09592925]
[1771945831958,4.34848525,77.069,77.033,12.98129592]
[1771945832160,4.34848525,77.059,77.028,12.98221413]
[1771945832362,4.34848525,77.059,77.029,4.09592925]
[1771945832583,4.34848525,77.059,77.031,12.98165794]
[1771945833486,4.34848525,77.059,77.02,13.87722692]
[1771945833487,12.97723792,77.058,77.027,12.98239173]
[1771945833674,12.97723792,77.058,77.02,17.97315617]
[1771945833854,4.34848525,77.049,77.02,12.9835835]
[1771945834058,4.34848525,77.049,77.015,12.98440491]
[1771945834259,13.87722692,77.04,77.011,4.09592925]
[1771945834458,13.87722692,77.03,77.0,17.97315617]
[1771945834667,13.87722692,77.03,76.996,12.98768767]
[1771945834668,4.34848525,77.059,77.043,0.2]
[1771945834860,12.97723792,77.058,77.043,0.2]
[1771945835563,12.97663212,77.062,77.053,0.2]
[1771945835789,12.97582405,77.067,77.043,0.2]
[1771945835960,3.69383402,77.064,77.044,12.97959607]